﻿Hospitality,First Name,Last Name,Honorific Title,Role,Caucus,Date,Purpose of Hospitality,Location,Total of Attendees,Supplier,Total
"2HOS_10558 ",Anthony,Rota,Hon.,Speaker,-,2022/04/01,To meet with visitors of the office,Ottawa,0,Super C,37.79
"2HOS_10604 ",Anthony,Rota,Hon.,Speaker,-,2022/06/08,To host a business meeting,Ottawa,150,House of Commons Food Services — Services de restauration de la Chambre des communes,950
"2HOS_10604 ",Anthony,Rota,Hon.,Speaker,-,2022/06/08,To host a business meeting,Ottawa,150,Purchase of wine and spirits from various suppliers — Achat de vins et spiritueux auprès de fournisseurs divers,1014.94
"2HOS_10604 ",Anthony,Rota,Hon.,Speaker,-,2022/06/08,To host a business meeting,Ottawa,150,J.P. Wiser,804.5
"2HOS_10605 ",Anthony,Rota,Hon.,Speaker,-,2022/06/09,To host a business meeting,Ottawa,15,House of Commons Food Services — Services de restauration de la Chambre des communes,415.15
"2HOS_10588 ",Mark,Holland,Hon.,"House Leader, Government",Liberal,2022/06/20,To host a business meeting,Ottawa,6,The Royal Oak,67.63
"2HOS_10621 ",Mark,Holland,Hon.,"House Leader, Government",Liberal,2022/09/20,To host a business meeting,Ottawa,8,Colonnade Pizza,32.55
"2HOS_10523 ",Steven,MacKinnon,Hon.,"Chief Whip, Government",Liberal,2022/04/01,To meet with visitors of the office,Ottawa,0,Amazon,64.99
"2HOS_10590 ",Steven,MacKinnon,Hon.,"Chief Whip, Government",Liberal,2022/06/07,To host a business meeting,Ottawa,4,House of Commons Food Services — Services de restauration de la Chambre des communes,40.55
"2HOS_10541 ",Candice,Bergen,Hon.,"Leader, Official Opposition",Conservative,2022/04/01,To meet with visitors of the office,Ottawa,0,Nespresso,76.2
"2HOS_10521 ",Candice,Bergen,Hon.,"Leader, Official Opposition",Conservative,2022/04/06,To host a business meeting,Ottawa,10,Metro,686.73
"2HOS_10521 ",Candice,Bergen,Hon.,"Leader, Official Opposition",Conservative,2022/04/06,To host a business meeting,Ottawa,10,Sasloves Meat Market,136.96
"2HOS_10521 ",Candice,Bergen,Hon.,"Leader, Official Opposition",Conservative,2022/04/06,To host a business meeting,Ottawa,10,Kristen van den Ham,150
"2HOS_10521 ",Candice,Bergen,Hon.,"Leader, Official Opposition",Conservative,2022/04/06,To host a business meeting,Ottawa,10,La Bottega,182.38
"2HOS_10543 ",Candice,Bergen,Hon.,"Leader, Official Opposition",Conservative,2022/05/10,To host a business meeting,Ottawa,11,Kristen van den Ham,150
"2HOS_10589 ",Candice,Bergen,Hon.,"Leader, Official Opposition",Conservative,2022/05/30,To host a business meeting,Ottawa,45,House of Commons Food Services — Services de restauration de la Chambre des communes,127.75
"2HOS_10589 ",Candice,Bergen,Hon.,"Leader, Official Opposition",Conservative,2022/05/30,To host a business meeting,Ottawa,45,Isabella Pizza,241.69
"2HOS_10597 ",Candice,Bergen,Hon.,"Leader, Official Opposition",Conservative,2022/06/01,To host a business meeting,Ottawa,8,Loblaws Inc.,96.21
"2HOS_10572 ",Candice,Bergen,Hon.,"Leader, Official Opposition",Conservative,2022/06/07,To host an event / a reception,Ottawa,100,Loblaws Inc.,155.92
"2HOS_10572 ",Candice,Bergen,Hon.,"Leader, Official Opposition",Conservative,2022/06/07,To host an event / a reception,Ottawa,100,Mastermind Event Rentals,1041.7
"2HOS_10573 ",Candice,Bergen,Hon.,"Leader, Official Opposition",Conservative,2022/06/08,To host an event / a reception,Ottawa,275,Loblaws Inc.,155.92
"2HOS_10573 ",Candice,Bergen,Hon.,"Leader, Official Opposition",Conservative,2022/06/08,To host an event / a reception,Ottawa,275,Mastermind Event Rentals,1041.7
"2HOS_10582 ",Candice,Bergen,Hon.,"Leader, Official Opposition",Conservative,2022/06/09,To host a business meeting,Ottawa,45,Isabella Pizza,260.71
"2HOS_10598 ",Candice,Bergen,Hon.,"Leader, Official Opposition",Conservative,2022/06/22,To host a business meeting,Ottawa,12,Metro,268.79
"2HOS_10598 ",Candice,Bergen,Hon.,"Leader, Official Opposition",Conservative,2022/06/22,To host a business meeting,Ottawa,12,Loblaws Inc.,106.1
"2HOS_10598 ",Candice,Bergen,Hon.,"Leader, Official Opposition",Conservative,2022/06/22,To host a business meeting,Ottawa,12,Kristen van den Ham,150
"2HOS_10598 ",Candice,Bergen,Hon.,"Leader, Official Opposition",Conservative,2022/06/22,To host a business meeting,Ottawa,12,Glebe Meat,269.1
"2HOS_10598 ",Candice,Bergen,Hon.,"Leader, Official Opposition",Conservative,2022/06/22,To host a business meeting,Ottawa,12,Kimberley Burke,150
"2HOS_10603 ",Candice,Bergen,Hon.,"Leader, Official Opposition",Conservative,2022/06/30,To host a business meeting,Lunenburg,4,Boathouse Bites,75.44
"2HOS_10611 ",Candice,Bergen,Hon.,"Leader, Official Opposition",Conservative,2022/07/26,To host a business meeting,Wendake,2,Premieres Nations,78.72
"2HOS_10615 ",Candice,Bergen,Hon.,"Leader, Official Opposition",Conservative,2022/08/17,To host an event / a reception,Ottawa,34,Isabella Pizza,196.37
"2HOS_10615 ",Candice,Bergen,Hon.,"Leader, Official Opposition",Conservative,2022/08/17,To host an event / a reception,Ottawa,34,Provigo Inc.,61.39
"2HOS_10618 ",John,Brassard,,"House Leader, Official Opposition",Conservative,2022/08/16,To host an event / a reception,Ottawa,100,The Royal Oak,3323.57
"2HOS_10602 ",Blaine,Calkins,,"Chief Whip, Official Opposition",Conservative,2022/06/22,To host a business meeting,Ottawa,8,Jack Astor's,365.49
"2HOS_10592 ",Scott,Reid,,"Caucus Chair, Official Opposition",Conservative,2022/06/01,To organize/support the national caucus meeting,Ottawa,100,House of Commons Food Services — Services de restauration de la Chambre des communes,162.5
"2HOS_10593 ",Scott,Reid,,"Caucus Chair, Official Opposition",Conservative,2022/06/08,To organize/support the national caucus meeting,Ottawa,100,House of Commons Food Services — Services de restauration de la Chambre des communes,162.5
"2HOS_10591 ",Scott,Reid,,"Caucus Chair, Official Opposition",Conservative,2022/06/18,To organize/support the national caucus meeting,Ottawa,100,House of Commons Food Services — Services de restauration de la Chambre des communes,162.5
"2HOS_10545 ",Yves-François,Blanchet,,"Leader, Other Opposition Party",Bloc Québécois,2022/04/01,To meet with visitors of the office,Ottawa,0,Nespresso,315
"2HOS_10545 ",Yves-François,Blanchet,,"Leader, Other Opposition Party",Bloc Québécois,2022/04/01,To meet with visitors of the office,Ottawa,0,House of Commons Food Services — Services de restauration de la Chambre des communes,30.75
"2HOS_10600 ",Yves-François,Blanchet,,"Leader, Other Opposition Party",Bloc Québécois,2022/06/14,To host a business meeting,Ottawa,9,House of Commons Food Services — Services de restauration de la Chambre des communes,251.35
"2HOS_10607 ",Yves-François,Blanchet,,"Leader, Other Opposition Party",Bloc Québécois,2022/07/05,To host a business meeting,Sainte-Anne-de-Bellevue,1,Violet Angel,83.88
"2HOS_10606 ",Yves-François,Blanchet,,"Leader, Other Opposition Party",Bloc Québécois,2022/07/05,To host a business meeting,Montréal,1,Le Grinder,87.33
"2HOS_10616 ",Yves-François,Blanchet,,"Leader, Other Opposition Party",Bloc Québécois,2022/08/26,To host a business meeting,Percé,3,Nath & compagnie,30.15
"2HOS_10620 ",Alain,Therrien,,"House Leader, Other Opposition Party",Bloc Québécois,2022/06/22,To host a business meeting,Gatineau,6,Boston Pizza Le Portage,182.93
"2HOS_10595 ",Marie-Hélène,Gaudreau,,"Caucus Chair, Other Opposition Party",Bloc Québécois,2022/06/01,To host a business meeting,Ottawa,100,House of Commons Food Services — Services de restauration de la Chambre des communes,459
"2HOS_10599 ",Marie-Hélène,Gaudreau,,"Caucus Chair, Other Opposition Party",Bloc Québécois,2022/06/22,To organize/support the national caucus meeting,Ottawa,45,House of Commons Food Services — Services de restauration de la Chambre des communes,282.81
"2HOS_10617 ",Marie-Hélène,Gaudreau,,"Caucus Chair, Other Opposition Party",Bloc Québécois,2022/08/15,To host a business meeting,Mont-Laurier,2,Boston Pizza,105.43
"2HOS_10622 ",Marie-Hélène,Gaudreau,,"Caucus Chair, Other Opposition Party",Bloc Québécois,2022/09/14,To organize/support the national caucus meeting,Oka,70,Boulangerie la Fournée d'Hortensia inc.,1805.88
"2HOS_10622 ",Marie-Hélène,Gaudreau,,"Caucus Chair, Other Opposition Party",Bloc Québécois,2022/09/14,To organize/support the national caucus meeting,Oka,70,Auberge de l'Abbaye d'Oka,220
"2HOS_10614 ",Jagmeet,Singh,,"Leader, Other Opposition Party",New Democratic Party,2022/06/04,To meet with stakeholders,Regina,2,Da India Curry House,84.05
"2HOS_10586 ",Jagmeet,Singh,,"Leader, Other Opposition Party",New Democratic Party,2022/06/07,To host a business meeting,Ottawa,3,House of Commons Food Services — Services de restauration de la Chambre des communes,147.12
"2HOS_10587 ",Jagmeet,Singh,,"Leader, Other Opposition Party",New Democratic Party,2022/06/23,To host an event / a reception,Ottawa,25,Uber Eats,48.79
"2HOS_10587 ",Jagmeet,Singh,,"Leader, Other Opposition Party",New Democratic Party,2022/06/23,To host an event / a reception,Ottawa,25,Colonnade Pizza,253.45
"2HOS_10610 ",Jagmeet,Singh,,"Leader, Other Opposition Party",New Democratic Party,2022/06/24,To meet with stakeholders,Montréal,4,Aux Vivres Plateau,159.62
"2HOS_10619 ",Jagmeet,Singh,,"Leader, Other Opposition Party",New Democratic Party,2022/07/17,To host a business meeting,Whitehorse,25,Independent,267.26
"2HOS_10608 ",Jagmeet,Singh,,"Leader, Other Opposition Party",New Democratic Party,2022/07/18,To meet with stakeholders,Whitehorse,10,Baked Cafe,49.77
"2HOS_10609 ",Jagmeet,Singh,,"Leader, Other Opposition Party",New Democratic Party,2022/07/25,To meet with stakeholders,Edmonton,4,Cafe Mosaics,123.42
"2HOS_10612 ",Jagmeet,Singh,,"Leader, Other Opposition Party",New Democratic Party,2022/08/04,To meet with stakeholders,Ottawa,7,Thali Coconut Lagoon,241.5
"2HOS_10613 ",Jagmeet,Singh,,"Leader, Other Opposition Party",New Democratic Party,2022/08/07,To meet with stakeholders,Montréal,3,Lola Rosa Cafe,102.09
"2HOS_10594 ",Rachel,Blaney,,"Chief Whip, Other Opposition Party",New Democratic Party,2022/06/22,To host a business meeting,Ottawa,7,House of Commons Food Services — Services de restauration de la Chambre des communes,390.8
